fUST/lending_fUST_20250106
["ID","MTS","AMOUNT","RATE_DAILY","PERIOD"]
[347804854,1736118641948,-500.0,0.00020544,3]
[347804856,1736118641958,-1230.94,0.00020785,3]
[347804858,1736118641967,-730.36,0.00020785,3]
[347804859,1736118641976,-611.01,0.00020816,3]
[347804860,1736118641984,-500.0,0.00020816,3]
[347804861,1736118641993,-500.0,0.00020817,3]
[347804862,1736118642002,-616.3,0.00020817,3]
[347804863,1736118642011,-2965.57,0.00020817,3]
[347804864,1736118642020,-548.13,0.00020817,3]
[347804865,1736118642029,-500.0,0.00020817,3]
[347804866,1736118642038,-238.105561,0.00020817,2]
[347804867,1736118642046,-238.105561,0.00020817,2]
[347804868,1736118642055,-151.0,0.00020818,2]
[347804869,1736118642064,-151.0,0.00020818,2]
[347804870,1736118642073,-500.0,0.00020818,3]
[347804871,1736118642082,-303.178498,0.00020818,2]
[347804872,1736118642091,-303.178498,0.00020818,2]
[347804873,1736118642099,-500.0,0.00020818,3]
[347804874,1736118642108,-151.0,0.00020818,2]
[347804875,1736118642117,-151.0,0.00020818,2]
[347804876,1736118642126,-1230.94,0.00021059,3]
[347804877,1736118642135,-730.36,0.00021059,3]
[347804878,1736118642145,-500.0,0.0002109,3]
[347804879,1736118642154,-500.0,0.00021091,3]
[347804880,1736118642163,-2965.57,0.00021091,3]
[347804882,1736118642172,-500.0,0.00021091,3]
[347804884,1736118642181,-500.0,0.00021092,3]
[347804886,1736118642190,-500.0,0.00021092,3]
[347804888,1736118642200,-1230.94,0.00021333,3]
[347804890,1736118642209,-730.36,0.00021333,3]
[347804892,1736118642218,-500.0,0.00021364,3]
[347804894,1736118642227,-500.0,0.00021365,3]
[347804896,1736118642236,-2965.57,0.00021365,3]
[347804898,1736118642245,-500.0,0.00021365,3]
[347804900,1736118642254,-226.372816,0.00021366,2]
[347804902,1736118642264,-226.372816,0.00021366,2]
[347804904,1736118642273,-500.0,0.00021366,3]
[347804906,1736118642283,-151.0,0.00021366,2]
[347804908,1736118642292,-500.0,0.00021366,3]
[347804910,1736118642301,-2724.0,0.000216,4]
[347804912,1736118642311,-276.31064484,0.00021606,2]
[347804914,1736118642320,-1230.94,0.00021607,3]
[347804916,1736118642330,-151.0,0.00021607,2]
[347804918,1736118642340,-166.553686,0.00021607,2]
[347804920,1736118642349,-303.178498,0.00021607,2]
[347804922,1736118642358,-303.178498,0.00021607,2]
[347804924,1736118642368,-730.36,0.00021607,3]
[347804926,1736118642377,-500.0,0.00021638,3]
[347804928,1736118642386,-500.0,0.00021639,3]
[347804930,1736118642395,-2965.57,0.00021639,3]
[347804932,1736118642405,-500.0,0.00021639,3]
[347804934,1736118642414,-238.105561,0.00021639,2]
[347804936,1736118642423,-238.105561,0.00021639,2]
[347804938,1736118642432,-500.0,0.0002164,3]
[347804940,1736118642442,-500.0,0.0002164,3]
[347804942,1736118642451,-151.0,0.0002164,2]
[347804944,1736118642460,-151.0,0.0002164,2]
[347804946,1736118642470,-451.385,0.0002175,2]
[347804948,1736118642479,-420.0,0.00021771,2]
[347804950,1736118642488,-151.0,0.00021879,2]
[347804952,1736118642497,-151.0,0.00021879,2]
[347804954,1736118642506,-151.0,0.00021879,2]
[347804956,1736118642515,-1230.94,0.00021881,3]
[347804958,1736118642524,-730.36,0.00021881,3]
[347804960,1736118642534,-500.0,0.00021912,3]
[347804962,1736118642543,-500.0,0.00021913,3]
[347804964,1736118642552,-2965.57,0.00021913,3]
[347804966,1736118642562,-500.0,0.00021913,3]
[347804968,1736118642571,-500.0,0.00021914,3]
[347804970,1736118642581,-500.0,0.00021914,3]
[347804972,1736118642590,-250.0,0.00021973,2]
[347804974,1736118642600,-1230.94,0.00022155,3]
[347804976,1736118642609,-730.36,0.00022155,3]
[347804978,1736118642618,-500.0,0.00022186,3]
[347804980,1736118642627,-500.0,0.00022187,3]
[347804982,1736118642636,-2965.57,0.00022187,3]
[347804984,1736118642644,-500.0,0.00022187,3]
[347804986,1736118642653,-500.0,0.00022188,3]
[347804988,1736118642662,-500.0,0.00022188,3]
[347804990,1736118642672,-276.021,0.00022198,2]
[347804992,1736118642681,-226.372816,0.00022198,7]
[347804994,1736118642690,-226.372816,0.00022198,7]
[347804996,1736118642701,-151.0,0.00022198,7]
[347804998,1736118642710,-1230.94,0.00022429,3]
[347805000,1736118642719,-730.36,0.00022429,3]
[347805002,1736118642728,-500.0,0.0002246,3]
[347805004,1736118642738,-500.0,0.00022461,3]
[347805006,1736118642747,-2965.57,0.00022461,3]
[347805008,1736118642757,-500.0,0.00022461,3]
[347805010,1736118642766,-500.0,0.00022462,3]
[347805012,1736118642775,-500.0,0.00022462,3]
[347805014,1736118642784,-151.0,0.00022464,7]
[347805016,1736118642793,-151.0,0.00022464,7]
[347805018,1736118642803,-151.0,0.0002258,7]
[347805020,1736118642812,-151.0,0.0002258,7]
[347805022,1736118642821,-151.0,0.000226,9]
[347805024,1736118642832,-158.0,0.00022673,2]
[347805026,1736118642841,-158.0,0.00022673,2]
[347805028,1736118642850,-160.68,0.00022673,2]
[347805030,1736118642859,-151.0,0.00022701,7]
[347805032,1736118642868,-303.178498,0.00022701,7]
[347805034,1736118642880,-303.178498,0.00022701,7]
[347805036,1736118642889,-238.105561,0.00022701,7]
[347805038,1736118642898,-238.105561,0.00022701,7]
[347805040,1736118642908,-1230.94,0.00022703,3]
[347805042,1736118642919,-730.36,0.00022703,3]
[347805045,1736118642928,-500.0,0.00022734,3]
[347805047,1736118642938,-500.0,0.00022735,3]
[347805049,1736118642947,-1499.46953352,0.00022735,3]
[347805052,1736118642960,-1019.0,0.00022735,3]
[347805159,1736118643726,-452.94223795,0.00019895,2]
[347805161,1736118643735,-378.24836376,0.00022735,3]
[347805368,1736118646530,-28.08618513,0.00021903,2]
[347805531,1736119160147,1337.38,0.00025,120]
[347805532,1736119204415,181.366176,0.0002411,120]
[347805533,1736119405215,162.678796,0.00013973,2]
[347805535,1736119629121,-168.4535853,0.00019178,2]
[347805536,1736119629147,-230.324066,0.00019564,2]
[347805537,1736119629175,-1945.98012111,0.000199,2]
[347805538,1736119629199,-500.0,0.00019962,2]
[347805539,1736119629226,-500.0,0.00019962,3]
[347805540,1736119629251,-300.0,0.00019993,2]
[347805541,1736119629278,-500.0,0.00019994,3]
[347805542,1736119629302,-181.81290131,0.00019994,3]
[347805543,1736119629329,-500.0,0.00019994,3]
[347805544,1736119629356,-500.0,0.00019994,3]
[347805545,1736119629382,-500.0,0.00019994,3]
[347805546,1736119629407,-500.0,0.00019994,3]
[347805547,1736119629431,-500.0,0.00019994,3]
[347805548,1736119629459,-500.0,0.00019994,3]
[347805549,1736119629485,-500.0,0.00019994,3]
[347805550,1736119629510,-500.0,0.00019994,3]
[347805551,1736119629534,-500.0,0.00019994,3]
[347805552,1736119629559,-500.0,0.00019994,3]
[347805553,1736119629585,-500.0,0.00019994,3]
[347805554,1736119629609,-500.0,0.00019994,3]
[347805555,1736119629783,-500.0,0.00019994,3]
[347805556,1736119629807,-500.0,0.00019994,3]
[347805557,1736119629830,-500.0,0.00019994,3]
[347805558,1736119629853,-500.0,0.00019994,3]
[347805559,1736119629883,-500.0,0.00019994,3]
[347805560,1736119629906,-500.0,0.00019994,3]
[347805561,1736119629927,-500.0,0.00019994,3]
[347805562,1736119629948,-500.0,0.00019994,3]
[347805563,1736119629969,-500.0,0.00019994,3]
[347805564,1736119629991,-500.0,0.00019994,3]
[347805565,1736119630013,-500.0,0.00019994,3]
[347805566,1736119630034,-500.0,0.00019994,3]
[347805567,1736119630056,-500.0,0.00019994,3]
[347805568,1736119630079,-500.0,0.00019994,3]
[347805569,1736119630101,-500.0,0.00019994,3]
[347805570,1736119630122,-500.0,0.00019994,3]
[347805571,1736119630143,-500.0,0.00019994,3]
[347805572,1736119630165,-500.0,0.00019994,3]
[347805573,1736119630188,-500.0,0.00019994,3]
[347805574,1736119630210,-500.0,0.00019994,3]
[347805575,1736119630231,-500.0,0.00019994,3]
[347805576,1736119630253,-500.0,0.00019994,3]
[347805577,1736119630276,-500.0,0.00019994,3]
[347805578,1736119630298,-500.0,0.00019994,3]
[347805579,1736119630321,-500.0,0.00019994,3]
[347805580,1736119630344,-500.0,0.00019994,3]
[347805581,1736119630368,-500.0,0.00019994,3]
[347805582,1736119630392,-500.0,0.00019994,3]
[347805583,1736119630415,-500.0,0.00019994,3]
[347805584,1736119630438,-500.0,0.00019994,3]
[347805585,1736119630461,-500.0,0.00019994,3]
[347805586,1736119630483,-500.0,0.00019994,3]
[347805587,1736119630505,-500.0,0.00019994,3]
[347805588,1736119630527,-500.0,0.00019994,3]
[347805589,1736119630550,-500.0,0.00019994,3]
[347805590,1736119630572,-500.0,0.00019994,3]
[347805591,1736119630595,-500.0,0.00019994,3]
[347805592,1736119630618,-500.0,0.00019994,3]
[347805593,1736119630640,-500.0,0.00019994,3]
[347805594,1736119630663,-500.0,0.00019994,3]
[347805595,1736119630687,-500.0,0.00019994,3]
[347805596,1736119630710,-94.38222614,0.00019994,3]
[347805597,1736119646097,-345.19735059,0.00019994,3]
[347805598,1736119650100,-60.42042327,0.00019994,3]
[347805599,1736119650123,-500.0,0.00019994,3]
[347805600,1736119650145,-254.67,0.00019994,3]
[347805601,1736119650168,-326.77140816,0.00019994,3]
[347805602,1736119692997,416.32860369,0.000125,2]
[347805603,1736119749158,-7357.81769056,0.00016,2]
[347805604,1736119749178,-79.26328063,0.00018,2]
[347805605,1736119749204,-4082.21215891,0.00018,2]
[347805606,1736119783542,1140.6580659,0.00019151,2]
[347805661,1736119832875,-500.0,0.00019993,3]
[347805663,1736119832884,-474.5,0.00019993,3]
[347805665,1736119832894,-250.49,0.00019993,3]
[347805667,1736119832903,-500.0,0.00019993,3]
[347805669,1736119832912,-300.0,0.00019993,2]
[347805671,1736119832921,-500.0,0.00019993,3]
[347805688,1736119833063,-173.22859184,0.00019994,3]
[347805690,1736119833074,-412.48524585,0.00019994,3]
[347805747,1736119833632,-87.51475415,0.00019994,3]
[347805749,1736119833641,-500.0,0.00019994,3]
[347805751,1736119833650,-500.0,0.00019994,3]
[347805753,1736119833660,-500.0,0.00019994,3]
[347805755,1736119833669,-500.0,0.00019994,3]
[347805757,1736119833678,-500.0,0.00019994,3]
[347805759,1736119833688,-500.0,0.00019994,3]
[347805761,1736119833697,-348.14667917,0.00019994,3]
[347806230,1736119838525,-151.85332083,0.00019994,3]
[347806232,1736119838534,-500.0,0.00019994,3]
[347806234,1736119838545,-500.0,0.00019994,3]
[347806236,1736119838554,-500.0,0.00019994,3]
[347806238,1736119838564,-500.0,0.00019994,3]
[347806240,1736119838573,-500.0,0.00019994,3]
[347806242,1736119838582,-500.0,0.00019994,3]
[347806244,1736119838591,-500.0,0.00019994,3]
[347806246,1736119838601,-500.0,0.00019994,3]
[347806248,1736119838610,-500.0,0.00019994,3]
[347806250,1736119838619,-500.0,0.00019994,3]
[347806252,1736119838628,-500.0,0.00019994,3]
[347806254,1736119838637,-169.70001549,0.00019994,3]
[347806257,1736119838648,-308.66509464,0.00019994,3]
[347806260,1736119838674,-500.0,0.00019993,3]
[347806262,1736119838683,-21.63488987,0.00019994,3]
[347806264,1736119838692,-500.0,0.00019994,3]
[347806266,1736119838701,-500.0,0.00019994,3]
[347806267,1736119838710,-535.43,0.00019994,3]
[347806268,1736119838719,-500.0,0.00019994,3]
[347806269,1736119838728,-500.0,0.00019994,3]
[347806270,1736119838738,-500.0,0.00019994,3]
[347806271,1736119838747,-500.0,0.00019994,3]
[347806272,1736119838756,-500.0,0.00019994,3]
[347806273,1736119838765,-500.0,0.00019994,3]
[347806274,1736119838774,-521.26735195,0.00019994,3]
[347806275,1736119838783,-500.0,0.00019994,3]
[347806276,1736119838793,-500.0,0.00019994,3]
[347806277,1736119838802,-500.0,0.00019994,3]
[347806278,1736119838811,-502.57,0.00019994,3]
[347806279,1736119838820,-180.96586757,0.00019995,3]
[347806280,1736119838829,-501.5103037,0.00019995,3]
[347806281,1736119838838,-157.01,0.00019997,2]
[347806282,1736119838848,-151.0,0.00019997,2]
[347806283,1736119838857,-1945.98012107,0.00020003,2]
[347806284,1736119838866,-541.53909124,0.00020107,2]
[347806416,1736119840709,-1404.44102983,0.00020107,2]
[347806419,1736119840719,-1574.71390017,0.0002021,2]
[347806423,1736119840750,-371.2662209,0.0002021,2]
[347806425,1736119840761,-210.77981018,0.00020235,2]
[347806428,1736119840783,-289.22018982,0.00020235,2]
[347806430,1736119840792,-500.0,0.00020235,3]
[347806432,1736119840802,-574.17,0.00020267,3]
[347806434,1736119840812,-500.0,0.00020267,3]
[347806436,1736119840821,-500.0,0.00020267,3]
[347806438,1736119840831,-500.0,0.00020267,3]
[347806440,1736119840840,-78.58864109,0.00020267,3]
[347806444,1736119840856,-421.41135891,0.00020267,3]
[347806447,1736119840866,-500.0,0.00020267,3]
[347806450,1736119840875,-565.9,0.00020267,3]
[347806453,1736119840885,-500.0,0.00020267,3]
[347806457,1736119840895,-500.0,0.00020267,3]
[347806460,1736119840905,-500.0,0.00020267,3]
[347806463,1736119840915,-500.0,0.00020267,3]
[347806466,1736119840924,-500.0,0.00020267,3]
[347806469,1736119840934,-500.0,0.00020267,3]
[347806472,1736119840944,-500.0,0.00020267,3]
[347806475,1736119840954,-500.0,0.00020267,3]
[347806477,1736119840963,-500.0,0.00020267,3]
[347806481,1736119840972,-367.41468256,0.00020267,3]
[347806652,1736119843883,-132.58531744,0.00020267,3]
[347806653,1736119843892,-500.0,0.00020267,3]
[347806654,1736119843902,-500.0,0.00020267,3]
[347806655,1736119843912,-500.0,0.00020267,3]
[347806656,1736119843921,-500.0,0.00020267,3]
[347806657,1736119843931,-500.0,0.00020267,3]
[347806658,1736119843940,-500.0,0.00020267,3]
[347806659,1736119843950,-500.0,0.00020267,3]
[347806660,1736119843959,-500.0,0.00020267,3]
[347806661,1736119843969,-500.0,0.00020267,3]
[347806662,1736119843979,-500.0,0.00020267,3]
[347806663,1736119843989,-500.0,0.00020267,3]
[347806664,1736119843998,-500.0,0.00020267,3]
[347806665,1736119844008,-500.0,0.00020267,3]
[347806666,1736119844018,-500.0,0.00020267,3]
[347806667,1736119844028,-500.0,0.00020267,3]
[347806668,1736119844038,-500.0,0.00020267,3]
[347806669,1736119844048,-586.95019538,0.00020267,3]
[347806670,1736119844057,-500.0,0.00020267,3]
[347806671,1736119844067,-500.0,0.00020267,3]
[347806672,1736119844076,-500.0,0.00020267,3]
[347806673,1736119844086,-500.0,0.00020267,3]
[347806674,1736119844096,-500.0,0.00020267,3]
[347806675,1736119844105,-500.0,0.00020267,3]
[347806676,1736119844115,-500.0,0.00020267,3]
[347806677,1736119844125,-500.0,0.00020267,3]
[347806678,1736119844134,-405.22,0.00020267,3]
[347806679,1736119844144,-500.0,0.00020267,3]
[347806680,1736119844154,-500.0,0.00020267,3]
[347806681,1736119844164,-450.8,0.00020268,3]
[347806682,1736119844174,-500.0,0.00020268,3]
[347806683,1736119844183,-500.0,0.00020268,3]
[347806684,1736119844193,-595.82,0.00020268,3]
[347806685,1736119844203,-472.71,0.00020268,3]
[347806686,1736119844212,-500.0,0.00020268,3]
[347806687,1736119844222,-431.75,0.00020268,3]
[347806688,1736119844231,-500.0,0.00020268,3]
[347806689,1736119844241,-500.0,0.00020268,3]
[347806690,1736119844251,-477.65,0.00020268,3]
[347806691,1736119844261,-609.18,0.00020268,3]
[347806692,1736119844272,-261.32,0.00020268,3]
[347806693,1736119844282,-248.94,0.00020268,3]
[347806694,1736119844291,-155.36,0.00020268,3]
[347806695,1736119844300,-500.0,0.00020268,3]
[347806696,1736119844310,-367.85,0.00020268,3]
[347806697,1736119844319,-151.0,0.00020269,2]
[347806698,1736119844329,-151.0,0.00020269,2]
[347806699,1736119844340,-151.0,0.00020269,2]
[347806700,1736119844349,-151.0,0.00020269,2]
[347806701,1736119844358,-151.0,0.00020269,2]
[347806702,1736119844367,-1945.98012107,0.00020314,2]
[347806703,1736119844377,-1945.98012107,0.00020417,2]
[347806704,1736119844387,-635.97,0.00020509,3]
[347806705,1736119844397,-500.0,0.00020509,2]
[347806706,1736119844494,-500.0,0.00020509,3]
[347806707,1736119844504,-1945.98012107,0.00020521,2]
[347806708,1736119844515,-224.1,0.00020541,3]
[347806709,1736119844525,-159.17,0.00020541,3]
[347806710,1736119844535,-154.41,0.00020541,3]
[347806711,1736119844545,-500.0,0.00020541,3]
[347806712,1736119844555,-448.32,0.00020541,3]
[347806713,1736119844565,-639.19,0.00020541,3]
[347806714,1736119844575,-500.0,0.00020541,3]
[347806715,1736119844585,-500.0,0.00020541,3]
[347806716,1736119844594,-500.0,0.00020542,3]
[347806717,1736119844604,-500.0,0.00020542,3]
[347806718,1736119844613,-500.0,0.00020542,3]
[347806719,1736119844623,-246.1,0.00020542,3]
[347806720,1736119844633,-243.46,0.00020542,3]
[347806721,1736119844643,-197.54742,0.00020543,2]
[347806722,1736119844653,-500.0,0.00020544,3]
[347806723,1736119844663,-500.0,0.00020544,3]
[347806724,1736119844672,-904.96,0.00020544,3]
[347806725,1736119844682,-500.0,0.00020544,3]
[347806726,1736119844691,-500.0,0.00020544,3]
[347806727,1736119844701,-1945.98012107,0.00020624,2]
[347806728,1736119844710,-604.55778581,0.00020684,2]
[347806729,1736119844721,-1945.98012107,0.00020728,2]
[347806730,1736119844729,-500.0,0.00020782,2]
[347806731,1736119844739,-500.0,0.00020782,2]
[347806732,1736119844749,-500.0,0.00020782,2]
[347806733,1736119844758,-500.0,0.00020782,2]
[347806734,1736119844769,-500.0,0.00020782,2]
[347806735,1736119844779,-500.0,0.00020782,2]
[347806736,1736119844788,-479.68304415,0.00020782,2]
[347806737,1736119844797,-500.0,0.00020782,2]
[347806738,1736119844807,-174.26157438,0.00020782,2]
[347806739,1736119844817,-500.0,0.00020782,2]
[347806740,1736119844826,-160.66605969,0.00020782,2]
[347806741,1736119844836,-500.0,0.00020782,2]
[347806742,1736119844845,-500.0,0.00020782,2]
[347806743,1736119844855,-500.0,0.00020782,2]
[347806744,1736119844864,-558.19286957,0.00020782,2]
[347806745,1736119844873,-500.0,0.00020782,2]
[347806746,1736119844883,-500.0,0.00020782,2]
[347806747,1736119844892,-500.0,0.00020782,2]
[347806748,1736119844901,-500.0,0.00020782,2]
[347806749,1736119844911,-500.0,0.00020782,2]
[347806750,1736119844920,-500.0,0.00020782,2]
[347806751,1736119844930,-500.0,0.00020782,2]
[347806752,1736119844939,-500.0,0.00020782,2]
[347806753,1736119844948,-500.0,0.00020782,2]
[347806754,1736119844957,-500.0,0.00020782,2]
[347806755,1736119844967,-500.0,0.00020782,2]
[347806756,1736119844976,-500.0,0.00020782,2]
[347806757,1736119844986,-500.0,0.00020782,2]
[347806758,1736119844995,-500.0,0.00020782,2]
[347806759,1736119845005,-500.0,0.00020782,2]
[347806760,1736119845015,-500.0,0.00020782,2]
[347806761,1736119845024,-500.0,0.00020782,2]
[347806762,1736119845034,-500.0,0.00020782,2]
[347806763,1736119845044,-500.0,0.00020782,2]
[347806764,1736119845054,-250.0,0.00020782,2]
[347806765,1736119845063,-630.35372247,0.00020782,2]
[347806766,1736119845073,-641.00498048,0.00020782,2]
[347806767,1736119845082,-500.0,0.00020782,2]
[347806768,1736119845092,-500.0,0.00020782,2]
[347806769,1736119845102,-500.0,0.00020782,2]
[347806770,1736119845111,-500.0,0.00020782,2]
[347806771,1736119845121,-500.0,0.00020782,2]
[347806772,1736119845131,-500.0,0.00020782,2]
[347806773,1736119845141,-500.0,0.00020782,2]
[347806774,1736119845151,-500.0,0.00020782,2]
[347806775,1736119845160,-500.0,0.00020782,2]
[347806776,1736119845170,-500.0,0.00020782,2]
[347806777,1736119845179,-500.0,0.00020782,2]
[347806778,1736119845188,-500.0,0.00020782,2]
[347806779,1736119845197,-500.0,0.00020782,2]
[347806780,1736119845207,-500.0,0.00020782,2]
[347806781,1736119845217,-500.0,0.00020782,2]
[347806782,1736119845227,-500.0,0.00020782,2]
[347806783,1736119845236,-500.0,0.00020782,2]
[347806784,1736119845246,-500.0,0.00020782,2]
[347806785,1736119845256,-500.0,0.00020782,2]
[347806786,1736119845265,-500.0,0.00020782,2]
[347806787,1736119845275,-500.0,0.00020782,2]
[347806788,1736119845285,-228.09248153,0.00020782,2]
[347806789,1736119845294,-500.0,0.00020782,2]
[347806790,1736119845304,-500.0,0.00020782,2]
[347806791,1736119845313,-500.0,0.00020782,2]
[347806792,1736119845323,-500.0,0.00020782,2]
[347806793,1736119845336,-500.0,0.00020782,2]
[347806794,1736119845346,-500.0,0.00020782,2]
[347806795,1736119845355,-500.0,0.00020782,2]
[347806796,1736119845364,-500.0,0.00020782,2]
[347806797,1736119845375,-568.21582108,0.00020782,2]
[347806798,1736119845384,-500.0,0.00020782,2]
[347806799,1736119845394,-500.0,0.00020782,2]
[347806800,1736119845403,-500.0,0.00020782,2]
[347806801,1736119845413,-500.0,0.00020782,2]
[347806802,1736119845422,-500.0,0.00020782,2]
[347806803,1736119845432,-500.0,0.00020782,2]
[347806804,1736119845442,-500.0,0.00020782,2]
[347806805,1736119845451,-500.0,0.00020783,2]
[347806806,1736119845461,-500.0,0.00020783,3]
[347806807,1736119845471,-500.0,0.00020815,3]
[347806808,1736119845481,-500.0,0.00020815,3]
[347806809,1736119845490,-340.0,0.00020815,3]
[347806810,1736119845499,-500.0,0.00020815,3]
[347806811,1736119845509,-500.0,0.00020815,3]
[347806812,1736119845520,-500.0,0.00020815,3]
[347806813,1736119845530,-500.0,0.00020815,3]
[347806814,1736119845539,-552.93,0.00020815,3]
[347806815,1736119845549,-500.0,0.00020815,3]
[347806816,1736119845558,-500.0,0.00020815,3]
[347806817,1736119845568,-566.21,0.00020815,3]
[347806818,1736119845578,-500.0,0.00020815,3]
[347806819,1736119845587,-500.0,0.00020815,3]
[347806820,1736119845596,-500.0,0.00020815,3]
[347806821,1736119845605,-500.0,0.00020815,3]
[347806822,1736119845615,-500.0,0.00020815,3]
[347806823,1736119845625,-500.0,0.00020815,3]
[347806824,1736119845635,-500.0,0.00020815,3]
[347806825,1736119845644,-2837.06,0.00020815,3]
[347806826,1736119845654,-500.0,0.00020815,3]
[347806827,1736119845663,-500.0,0.00020815,3]
[347806828,1736119845673,-500.24093591,0.00020815,3]
[347806829,1736119845683,-500.0,0.00020815,3]
[347806830,1736119845692,-500.0,0.00020815,3]
[347806831,1736119845703,-183.27524731,0.00020815,2]
[347806832,1736119845713,-384.50678766,0.00020815,2]
[347806833,1736119845723,-500.0,0.00020816,3]
[347806834,1736119845733,-169.48,0.00020816,3]
[347806835,1736119845742,-500.0,0.00020816,3]
[347806836,1736119845752,-151.0,0.00020817,2]
[347806837,1736119845762,-151.0,0.00020817,2]
[347806838,1736119845773,-151.0,0.00020817,2]
[347806839,1736119845783,-151.0,0.00020817,2]
[347806840,1736119845792,-151.0,0.00020817,2]
[347806841,1736119845802,-904.96,0.00020818,3]
[347806842,1736119845811,-377.91,0.00020818,3]
[347806843,1736119845821,-1945.98012107,0.00020831,2]
[347806844,1736119845831,-1945.98012107,0.00020934,2]
[347806845,1736119845840,-1945.98012107,0.00021038,2]
[347806846,1736119845850,-597.15,0.00021057,2]
[347806847,1736119845859,-500.0,0.00021057,3]
[347806848,1736119845868,-166.572,0.00021058,2]
[347806849,1736119845879,-151.0,0.00021088,2]
[347806850,1736119845888,-2837.06,0.00021089,3]
[347806851,1736119845899,-500.0,0.00021089,3]
[347806852,1736119845908,-500.0,0.00021089,3]
[347806853,1736119845918,-500.0,0.0002109,3]
[347806854,1736119845927,-469.18353225,0.0002109,3]
[347806855,1736119845937,-500.0,0.0002109,3]
[347806856,1736119845946,-500.0,0.0002109,3]
[347806857,1736119845956,-500.0,0.0002109,3]
[347806858,1736119845967,-200.0,0.0002109,3]
[347806859,1736119845977,-500.0,0.0002109,3]
[347806860,1736119845986,-500.0,0.0002109,3]
[347806861,1736119845996,-500.0,0.0002109,3]
[347806862,1736119846005,-500.0,0.0002109,3]
[347806863,1736119846018,-500.0,0.0002109,3]
[347806864,1736119846028,-500.0,0.0002109,3]
[347806865,1736119846038,-500.0,0.0002109,3]
[347806866,1736119846048,-580.42098436,0.0002109,3]
[347806867,1736119846058,-500.0,0.0002109,3]
[347806868,1736119846068,-500.0,0.0002109,3]
[347806869,1736119846077,-500.0,0.0002109,3]
[347806870,1736119846087,-500.0,0.0002109,3]
[347806871,1736119846096,-423.29487686,0.0002109,3]
[347806874,1736119846106,-500.0,0.0002109,3]
[347806875,1736119846115,-500.0,0.0002109,3]
[347806876,1736119846124,-500.0,0.0002109,3]
[347806877,1736119846133,-500.0,0.0002109,3]
[347806878,1736119846143,-500.0,0.0002109,3]
[347806879,1736119846151,-500.0,0.0002109,3]
[347806880,1736119846161,-500.0,0.0002109,3]
[347806881,1736119846171,-500.0,0.0002109,3]
[347806882,1736119846181,-552.32105813,0.0002109,3]
[347806883,1736119846191,-500.0,0.0002109,3]
[347806884,1736119846201,-500.0,0.0002109,3]
[347806885,1736119846210,-500.0,0.0002109,3]
[347806886,1736119846219,-500.0,0.0002109,3]
[347806887,1736119846229,-500.0,0.0002109,3]
[347806888,1736119846238,-151.0,0.0002109,2]
[347806889,1736119846247,-500.0,0.0002109,3]